Cogmind - Beta 12 @@@ ROGUE MODE // 2023.05.14 @ 00:31:49 Player: Eb Result: Destroyed by B-75 Beast with Magnetic Acceleration Cannon Performance ------------- Evolutions (4) 2000 Regions Visited (8) 1600 Robots Destroyed (54) 270 Value Destroyed (1401) 1401 Prototype IDs (11) 220 Alien Tech Used (0) 0 Bonus (271) 271 TOTAL SCORE: 5762 Bonus ------- High Alert Combat Kills 80 Follower Combat Kills 191 Cogmind --------- Core Integrity 0/850 Matter 99/300 Energy 100/100 System Corruption 3% Temperature Cool (0) Movement Core (50) Location -6/Lower Caves Parts ------- > --- POWER (1) -------- (None) > --- PROPULSION (6) --- (None) > --- UTILITY (6) ------ Triangulator Enhanced Optical Array Armor Integrity Analyzer Improved Hacking Suite Improved System Shield System Guard > --- WEAPON (2) ------- (None) > --- INVENTORY (5) ---- Light Nuclear Core Hacking Suite Hacking Drone Bay (1/1) Phasing AFG Beamcaster Peak State ------------ > --- POWER ------------ (None) > --- PROPULSION ------- Armored Leg Wheel Wheel Gravmag System Improved Gravmag System Improved Gravmag System > --- UTILITY ---------- Triangulator Improved Light Armor Plating Improved Heavy Armor Plating Makeshift Hacking Suite System Guard > --- WEAPON ----------- Heavy Laser Flak Gun > --- INVENTORY -------- Improved Hacking Suite Improved System Shield Mobile Refinery Mk. CCLXVII Hacking Drone Bay Phasing AFG [Rating: 59] Favorites ----------- Power Light Ion Engine Engine Light Ion Engine Power Core Light Nuclear Core Propulsion Flight Unit Treads Improved Medium Treads Leg Armored Leg Wheel Wheel Hover Unit Improved Gravmag System Flight Unit Flight Unit Utility Makeshift Hacking Suite Device Triangulator Storage Small Battery Processor System Guard Hackware Makeshift Hacking Suite Protection Improved Heavy Armor Plating Weapon Mini Grenade Launcher Energy Gun Heavy Laser Energy Cannon Light EM Pulse Cannon Ballistic Gun Assault Rifle Launcher Mini Grenade Launcher Special Weapon Mining Laser Slashing Weapon Ripper Build | -11 -10 -10 -9 -9 -7 -6 -6 -6 ------- Run | Jun Mat Min Mat Min Zio Pro Fac Low Slots Evolved 8 | . . . 2 . . . 6 . Power . | . . . . . . . . . Propulsion 4 | . . . 1 . . . 3 . Utility 4 | . . . 1 . . . 3 . Weapon . | . . . . . . . . . Parts Attached 77 | 5 10 3 5 7 9 2 30 6 Power 5 | 1 . 1 . 1 . . 1 1 Engine 4 | 1 . 1 . 1 . . 1 . Core 1 | . . . . . . . . 1 Reactor . | . . . . . . . . . Propulsion 26 | 2 4 1 1 4 1 1 12 . Treads 1 | . . . . . . . 1 . Leg 1 | . . . . . . . 1 . Wheel 7 | 2 . . . . . . 5 . Hover 5 | . 2 . . . . . 3 . Flight 12 | . 2 1 1 4 1 1 2 . Utility 27 | . 3 1 . 1 5 . 13 4 Device 9 | . . . . . 2 . 6 1 Storage 1 | . . . . 1 . . . . Processor 7 | . 1 1 . . . . 4 1 Hackware 5 | . . . . . 3 . 1 1 Protection 5 | . 2 . . . . . 2 1 Artifact . | . . . . . . . . . Weapon 19 | 2 3 . 4 1 3 1 4 1 Energy Gun 6 | . 1 . 2 1 . . 1 1 Energy Cannon 1 | . . . 1 . . . . . Ballistic Gun 5 | 2 1 . 1 . . . 1 . Ballistic Cannon . | . . . . . . . . . Launcher 3 | . . . . . 2 . 1 . Special Weapon 1 | . 1 . . . . . . . Impact Weapon . | . . . . . . . . . Slashing Weapon 3 | . . . . . 1 1 1 . Piercing Weapon . | . . . . . . . . . Special Melee Weapon . | . . . . . . . . . Unidentified Prototypes 5 | . . . 1 . 3 . 1 . Parts Lost 32 | . . 2 4 2 . 3 18 3 Power 4 | . . 1 1 . . 1 1 . Propulsion 15 | . . 1 2 1 . 2 6 3 Utility 8 | . . . . . . . 8 . Weapon 5 | . . . 1 1 . . 3 . Highest Loss Streak 5 | . . 2 2 1 . 3 5 3 To Critical Strikes . | . . . . . . . . . Average Slot Usage (%) 70 | . 88 91 70 62 94 93 55 53 Engine 5 | . 14 11 9 5 11 8 . . Wheel 3 | . 10 . . . . . 5 1 Hover 4 | . 13 . . . . . 6 3 Flight 12 | . 3 26 22 19 33 29 3 . Device 3 | . . . . . . . 8 1 Processor 10 | . 7 24 22 22 10 . 6 19 Hackware 10 | . . . . . 18 33 10 12 Protection 2 | . 11 . . . . . 2 4 Energy Gun 2 | . . . 3 8 5 . 1 5 Ballistic Gun 4 | . 26 14 7 . . . . . Launcher 2 | . . . . . 6 11 2 . Special Weapon 1 | . . 14 4 . . . . . Slashing Weapon 2 | . . . . . 5 11 2 . Naked Turns . | . . . . . . . . . Heaviest Build 32 | 7 14 5 7 7 11 7 32 15 Greatest Support 30 | 20 20 8 12 12 12 12 30 20 Greatest Overweight (x) 4 | . 2 . . . . . 2 4 Average Overweight (x) . | . . . . . . . . 1 Largest Inventory Capacity 5 | 5 5 5 5 5 5 5 5 5 Average Capacity 5 | 5 5 5 5 5 5 5 5 5 Most Carried 5 | 1 5 5 5 5 5 5 5 5 Average Carried 4 | . 2 4 4 4 4 4 4 4 Final Capacity 5 | 5 5 5 5 5 5 5 5 5 Final Carried 5 | 1 5 3 5 5 5 5 5 5 Class Distribution -------------------- 40% | Mutant 39% | Hacker-Mutant 20% | Scavenger-Mutant Dominant Class ---------------- Mutant | -10/Materials Scavenger-Mutant | -10/Mines Scavenger-Mutant | -9/Materials Scavenger-Mutant | -9/Mines Hacker-Mutant | -7/Zion Hacker-Mutant | -6/Proximity Caves Mutant | -6/Factory Hacker-Mutant | -6/Lower Caves Resources | -11 -10 -10 -9 -9 -7 -6 -6 -6 ----------- Run | Jun Mat Min Mat Min Zio Pro Fac Low Matter Collected 1441 | 250 82 106 114 57 100 55 530 147 Remotely . | . . . . . . . . . Salvage Created 1407 | . 82 33 123 301 . 47 719 102 Parts 99 | . 16 2 13 22 . 1 40 5 Haulers Intercepted . | . . . . . . . . . Recyclers Shooed 4 | . 1 . . . . . 3 . Parts Field Recycled . | . . . . . . . . . Retrieved Matter . | . . . . . . . . . Parts Self-Destructed 6 | . . . . . . 2 . 4 Prevented . | . . . . . . . . . Kills | -11 -10 -10 -9 -9 -7 -6 -6 -6 ------- Run | Jun Mat Min Mat Min Zio Pro Fac Low Combat Hostiles Destroyed 34 | . 3 1 2 7 . 1 16 4 Guns 18 | . 3 1 2 5 . . 3 4 AOE 16 | . . . . 2 . 1 13 . Classes Destroyed 11 | . 3 1 2 1 . . 4 . Worker 5 | . . . . . . . 5 . Builder 3 | . 1 . . . . . 2 . Tunneler 1 | . . . 1 . . . . . Recycler 5 | . . . . 2 . . 3 . Operator 2 | . . . 1 . . . 1 . Watcher 4 | . 1 . 2 . . . 1 . Swarmer 18 | . 3 . 2 7 . . 2 4 Cutter 2 | . . . . . . . 2 . Grunt 8 | . . 1 . . . 1 6 . Hunter 2 | . . . . . . . 2 . Programmer 4 | . . . . . . . 4 . Best Kill Streak 9 | . 4 1 3 4 . 1 9 4 Combat Bots Only 6 | . 3 1 2 4 . 1 6 4 Max Kills in Single Turn 2 | . 2 1 2 2 . 1 2 1 Gunslinging . | . . . . . . . . . Exploded 2 | . . . . 2 . 1 2 . Melee . | . . . . . . . . . Uniques/NPCs Destroyed . | . . . . . . . . . Combat | -11 -10 -10 -9 -9 -7 -6 -6 -6 -------- Run | Jun Mat Min Mat Min Zio Pro Fac Low Damage Taken 3570 | . 196 123 261 118 . 143 2413 316 Core 1090 | . 24 13 53 58 . 73 712 157 Absorbed by Shields . | . . . . . . . . . Core Remaining (%) 79 | 100 . 85 . . . 54 . . Volleys Fired 160 | . 15 21 24 19 . 7 59 15 Largest 2 | . 2 1 1 1 . 1 2 1 Hottest 97 | . 40 20 45 45 . 30 97 75 Shots Fired 176 | . 29 21 24 19 . 7 61 15 Gun 130 | . 29 21 24 19 . . 22 15 Cannon . | . . . . . . . . . Launcher 46 | . . . . . . 7 39 . Special . | . . . . . . . . . Kinetic 76 | . 29 21 19 . . . 7 . Thermal 30 | . . . . . . . 15 15 Explosive 46 | . . . . . . 7 39 . Electromagnetic 24 | . . . 5 19 . . . . Robot Hit Streak 10 | . 3 10 5 6 . . 7 3 Robot Miss Streak 8 | . 4 2 3 2 . . 8 2 Penetration Max . | . . . . . . . . . Secondary Targets . | . . . . . . . . . Shots Hit Robots 107 | . 15 16 16 15 . . 37 8 Core Hits 101 | . 7 5 11 9 . 4 61 4 Critical Kills . | . . . . . . . . . Critical Parts Destroyed . | . . . . . . . . . Critical Strikes 4 | . . . . . . . 1 3 Burn 4 | . . . . . . . 1 3 Melee Attacks 8 | . . . . . . . 8 . Impact . | . . . . . . . . . Slashing 8 | . . . . . . . 8 . Piercing . | . . . . . . . . . Sneak Attacks 1 | . . . . . . . 1 . Combat Hostiles . | . . . . . . . . . Follow-up Attacks . | . . . . . . . . . Damage Inflicted 4708 | . 196 134 261 328 . 216 3401 172 Guns 1267 | . 196 134 261 219 . . 285 172 Cannons . | . . . . . . . . . Explosions 3249 | . . . . 109 . 216 2924 . Melee 168 | . . . . . . . 168 . Ramming 24 | . . . . . . . 24 . Kinetic 563 | . 196 134 164 . . . 69 . Thermal 633 | . . . . 109 . . 352 172 Explosive 3004 | . . . . . . 216 2788 . Electromagnetic 316 | . . . 97 219 . . . . Impact . | . . . . . . . . . Slashing 168 | . . . . . . . 168 . Piercing . | . . . . . . . . . Highest Corruption 8 | . . . . . . . 8 3 Average Corruption 2 | . . . . . . . 2 3 Corruption Purged . | . . . . . . . . . Corruption Blocked . | . . . . . . . . . Effects 3 | . . . . . . . 2 1 Matter Fused 1 | . . . . . . . . 1 Heat Flow Errors 1 | . . . . . . . 1 . Alerts 1 | . . . . . . . 1 . Overload Shots . | . . . . . . . . . Overflow Damage 258 | . . . . 20 . 13 225 . Projectiles . | . . . . . . . . . Explosions 199 | . . . . 20 . 13 166 . Melee 59 | . . . . . . . 59 . Knockbacks . | . . . . . . . . . Impact . | . . . . . . . . . Kinetic . | . . . . . . . . . Secondary . | . . . . . . . . . Self-Inflicted Damage 215 | . . . . 26 . 32 157 . Shots 7 | . . . . 1 . 1 5 . Rammed 2 | . . . . . . . 2 . Targets Rammed 2 | . . . . . . . 2 . Kicked . | . . . . . . . . . Crushed . | . . . . . . . . . Highest Temperature 69 | . . 13 15 12 . 3 69 42 Average Temperature 8 | . . 5 4 5 . 2 9 11 Received Heat Transfer 624 | . . 93 126 . . 45 360 . Siege Activations . | . . . . . . . . . Robots Corrupted . | . . . . . . . . . Combat Hostiles . | . . . . . . . . . Parts Fried 1 | . . . 1 . . . . . Impact Corruptions . | . . . . . . . . . Robots Melted . | . . . . . . . . . Combat Hostiles . | . . . . . . . . . Parts Melted 1 | . . . . . . . . 1 Heat Transferred 1249 | . . . . 150 . . 581 518 Parts Sabotaged . | . . . . . . . . . Parts Stolen . | . . . . . . . . . Parts Stripped . | . . . . . . . . . Power Chain Reactions 2 | . . . . 2 . . . . Missiles Intercepted . | . . . . . . . . . Alert | -11 -10 -10 -9 -9 -7 -6 -6 -6 ------- Run | Jun Mat Min Mat Min Zio Pro Fac Low Peak Influence 728 | . 162 98 347 353 . . 728 . Initial 133 | . . 63 35 133 . . 25 . Average 247 | . 52 69 226 210 . . 333 . Maximum Alert Level 3 | . . . 1 1 . . 3 . Low Security (%) 53 | 100 100 100 32 21 . . 42 . Level 1 15 | . . . 67 78 . . 6 . Level 2 23 | . . . . . . . 39 . Level 3 6 | . . . . . . . 11 . Level 4 . | . . . . . . . . . Level 5 . | . . . . . . . . . High Security . | . . . . . . . . . Max Security . | . . . . . . . . . Squads Dispatched 7 | . . . 1 . . . 6 . Investigation . | . . . . . . . . . Extermination 1 | . . . . . . . 1 . Reinforcement 6 | . . . 1 . . . 5 . Assault . | . . . . . . . . . Garrison . | . . . . . . . . . Intercept . | . . . . . . . . . Searches Triggered . | . . . . . . . . . Construction Impeded 1 | . . . . . . . 1 . Haulers Reinforced 1 | . . . . . . . 1 . Active Scanning Responses . | . . . . . . . . . Cargo Convoy Interrupts . | . . . . . . . . . Stealth | -11 -10 -10 -9 -9 -7 -6 -6 -6 --------- Run | Jun Mat Min Mat Min Zio Pro Fac Low Distress Signals 4 | . . . 3 . . . 1 . Communications Jammed . | . . . . . . . . . Distress Signals . | . . . . . . . . . Times Spotted 91 | . 7 2 26 11 . 3 35 7 Peak Tracking Total 10 | . 4 2 10 6 . 3 7 4 Tactical Retreats 14 | . 1 1 3 1 . 1 5 2 Traps | -11 -10 -10 -9 -9 -7 -6 -6 -6 ------- Run | Jun Mat Min Mat Min Zio Pro Fac Low Traps Triggered 3 | . . . . . . . 3 . Indirectly . | . . . . . . . . . Trap Hack Attempts . | . . . . . . . . . Triggered . | . . . . . . . . . Disarmed . | . . . . . . . . . Reprogrammed . | . . . . . . . . . Reused . | . . . . . . . . . Traps Extracted . | . . . . . . . . . Installed . | . . . . . . . . . Triggered 2 | . . . . . . 2 . . Machines | -11 -10 -10 -9 -9 -7 -6 -6 -6 ---------- Run | Jun Mat Min Mat Min Zio Pro Fac Low Machines Disabled 13 | . . . . . . . 13 . Max in Single Turn 5 | . . . . . . . 5 . Garrison Access 1 | . . . . . . . 1 . Machines Repaired . | . . . . . . . . . Machines Sabotaged . | . . . . . . . . . Overloaded Fab Kills . | . . . . . . . . . Hacking | -11 -10 -10 -9 -9 -7 -6 -6 -6 --------- Run | Jun Mat Min Mat Min Zio Pro Fac Low Machines Accessed 10 | . 4 . . . . . 6 . Terminals 6 | . 3 . . . . . 3 . Fabricators . | . . . . . . . . . Repair Stations . | . . . . . . . . . Recycling Units 1 | . 1 . . . . . . . Scanalyzers 2 | . . . . . . . 2 . Garrison Access 1 | . . . . . . . 1 . Total Hacks 18 | . 8 . . . . . 10 . Successful 12 | . 4 . . . . . 8 . Failed 6 | . 4 . . . . . 2 . Catastrophic . | . . . . . . . . . Database Lockouts . | . . . . . . . . . Manual . | . . . . . . . . . Terminals 13 | . 7 . . . . . 6 . Fabricators . | . . . . . . . . . Repair Stations . | . . . . . . . . . Recycling Units 1 | . 1 . . . . . . . Scanalyzers 3 | . . . . . . . 3 . Garrison Access 1 | . . . . . . . 1 . Terminal Hacks 7 | . 3 . . . . . 4 . Robot Analysis 1 | . 1 . . . . . . . Prototype ID Bank 2 | . . . . . . . 2 . Branch Access Points 1 | . . . . . . . 1 . Recycling Unit Index 1 | . . . . . . . 1 . Zone Layout 2 | . 2 . . . . . . . Fabricator Hacks . | . . . . . . . . . Repair Station Hacks . | . . . . . . . . . Recycling Unit Hacks 1 | . 1 . . . . . . . Report Inventory 1 | . 1 . . . . . . . Scanalyzer 3 | . . . . . . . 3 . Insert Component 2 | . . . . . . . 2 . Analyze 1 | . . . . . . . 1 . Garrison Access Hacks 1 | . . . . . . . 1 . Seal Access 1 | . . . . . . . 1 . Unauthorized Hacks . | . . . . . . . . . Terminals . | . . . . . . . . . Fabricators . | . . . . . . . . . Repair Stations . | . . . . . . . . . Recycling Units . | . . . . . . . . . Scanalyzers . | . . . . . . . . . Garrison Access . | . . . . . . . . . Data Cores Recovered . | . . . . . . . . . Used . | . . . . . . . . . Hacking Detections 6 | . 2 . . . . . 4 . Full Trace Events . | . . . . . . . . . Feedback Events . | . . . . . . . . . Feedback Blocked . | . . . . . . . . . Robot Schematics Acquired 3 | . . . . . 3 . . . Robots Built . | . . . . . . . . . Authchips . | . . . . . . . . . Time . | . . . . . . . . . Total Robot Build Rating . | . . . . . . . . . Part Schematics Acquired 16 | . . . . . 15 . 1 . Parts Built . | . . . . . . . . . Authchips . | . . . . . . . . . Time . | . . . . . . . . . Total Part Build Rating . | . . . . . . . . . Parts Repaired . | . . . . . . . . . Time . | . . . . . . . . . Parts Recycled . | . . . . . . . . . Recycled Matter . | . . . . . . . . . Retrieved Matter . | . . . . . . . . . Retrieved Components . | . . . . . . . . . Parts Scanalyzed 1 | . . . . . . . 1 . Part Schematics Acquired 1 | . . . . . . . 1 . Parts Damaged . | . . . . . . . . . Bothacking | -11 -10 -10 -9 -9 -7 -6 -6 -6 ------------ Run | Jun Mat Min Mat Min Zio Pro Fac Low Used RIF Installer . | . . . . . . . . . Robots Hacked . | . . . . . . . . . Non-combat . | . . . . . . . . . Combat . | . . . . . . . . . Robot Hacks Applied . | . . . . . . . . . Relay Couplers Released . | . . . . . . . . . Fabnet Peak Effective % . | . . . . . . . . . Robots Rewired . | . . . . . . . . . Allies Hacked . | . . . . . . . . . Hacks Repelled . | . . . . . . . . . Allies | -11 -10 -10 -9 -9 -7 -6 -6 -6 -------- Run | Jun Mat Min Mat Min Zio Pro Fac Low Total Allies 2 | . . 2 . . . . . . Largest Group 2 | . . 2 1 . . . . . Highest-Rated Group 53 | . . 53 31 . . . . . Highest-Rated Ally 31 | . . 31 31 . . . . . Total Orders . | . . . . . . . . . Ally Attacks 24 | . . 1 23 . . . . . Total Damage 423 | . . 21 402 . . . . . Kills 7 | . . 1 6 . . . . . Allies Corrupted . | . . . . . . . . . Allies Melted . | . . . . . . . . . Intel | -11 -10 -10 -9 -9 -7 -6 -6 -6 ------- Run | Jun Mat Min Mat Min Zio Pro Fac Low Robot Analysis Total 1 | . 1 . . . . . . . Derelict Logs Recovered 5 | . . 1 . 1 2 1 . . Drone Launches . | . . . . . . . . . Drone Recoveries . | . . . . . . . . . Exploration | -11 -10 -10 -9 -9 -7 -6 -6 -6 ------------- Run | Jun Mat Min Mat Min Zio Pro Fac Low Turns Passed 3087 | 37 314 152 201 147 459 196 1254 327 Spaces Moved 4302 | 37 290 228 296 254 1096 432 1452 217 Core 416 | 1 . . . 8 . . 292 115 Treads 41 | . . . . . . . 41 . Legs . | . . . . . . . . . Wheels 383 | 36 131 . . . . . 216 . Hover 358 | . 95 . . . . . 161 102 Flight 3104 | . 64 228 296 246 1096 432 742 . Fastest Speed 34 | 50 37 37 34 34 34 34 37 50 Average Speed 52 | 79 82 37 36 37 34 34 64 114 Slowest Speed 250 | 80 180 40 40 50 34 37 190 250 Overloaded Moves 22 | . . . . . . . 22 . Propulsion Burnouts . | . . . . . . . . . Robots Hopped 17 | . . 3 11 1 . 1 1 . Cave-ins Triggered 1 | . . . . . . . 1 . Exploration Rate (%) 43 | 3 53 65 35 42 85 59 31 21 Regions Visited 8 Branch Regions 5 Pre-discovered Areas 2 | . . 1 . 1 . . . . Known Exits Taken 2 | . . . . . 1 . 1 . Unknown Exits Taken 6 | 1 1 1 1 1 . 1 . . Scrap Searched 10 | . . 1 . 2 2 3 . 2 Spaces Dug 33 | . . . . . . . 33 . Terrain Destroyed 311 | . . . . 10 . 60 241 . Melee . | . . . . . . . . . Projectile . | . . . . . . . . . AOE 311 | . . . . 10 . 60 241 . Terrain Rammed . | . . . . . . . . . Walls Destroyed . | . . . . . . . . . Machines Disabled . | . . . . . . . . . Actions | -11 -10 -10 -9 -9 -7 -6 -6 -6 --------- Run | Jun Mat Min Mat Min Zio Pro Fac Low Total 4912 | 42 334 274 353 284 1183 469 1693 280 Wait 324 | . 6 26 34 2 65 28 127 36 Move 4263 | 36 289 221 276 251 1095 429 1449 217 Hop 14 | . . 3 8 1 . 1 1 . Pick Up 22 | 1 5 . 2 2 4 1 6 1 Fast Attach 54 | 5 9 1 4 5 5 . 22 3 Attach 18 | . 1 2 . 1 3 1 7 3 Detach 7 | . . . . . 2 . 2 3 Swap 5 | . . . 1 1 1 1 1 . Drop 35 | . 9 . 4 2 8 1 9 2 Fire 160 | . 15 21 24 19 . 7 59 15 Melee 8 | . . . . . . . 8 . Ram 2 | . . . . . . . 2 . Kick . | . . . . . . . . . Crush . | . . . . . . . . . Escape Stasis . | . . . . . . . . . Rewire . | . . . . . . . . . Trap . | . . . . . . . . . Miscellaneous . | . . . . . . . . . Route ------- -11/Junkyard -10/Materials (discovered 3 exits: *Mat / [*Min x2]) -10/Mines -9/Materials (discovered 4 exits: [*Mat] / [*Min x2] / [*Sto]) -9/Mines (discovered 3 exits: [*Mat x2] / [*Zio]) -7/Zion -6/Proximity Caves -6/Factory (discovered 3 exits: Fac / *Low x2) -6/Lower Caves (discovered 1 exit: Low) History --------- Turn | Location | Event 24 | -11/Junkyard | Discovered new exit (range 15) 38 | -11/Junkyard | Entered Materials 46 | -10/Materials | Discovered new exit (range 14) 213 | -10/Materials | Discovered new exit (range 4) 247 | -10/Materials | Discovered new exit (range 12) 305 | -10/Materials | Build established: Mutant 352 | -10/Materials | Entered Mines 362 | -10/Mines | Learned location of Recycling (-9) 363 | -10/Mines | Assembled infested the area 429 | -10/Mines | Discovered new exit (range 5) 504 | -10/Mines | Entered Materials 504 | -9/Materials | Accompanied by 1 ally 504 | -9/Materials | Evolved 2 slots: Propulsion x1, Utility x1 509 | -9/Materials | Led the pair of lost Derelicts to an unsafe place 511 | -9/Materials | Discovered new exit (range 18) 546 | -9/Materials | Discovered new exit (range 17) 629 | -9/Materials | Discovered new exit (range 14) 700 | -9/Materials | Discovered new exit (range 7) 705 | -9/Materials | Entered Mines 706 | -9/Mines | Learned location of Zion (-7) 739 | -9/Mines | Discovered new exit (range 7) 818 | -9/Mines | Received a Rocket Launcher from a helpful Derelict 832 | -9/Mines | Discovered new exit (range 18) 849 | -9/Mines | A Derelict revealed a hidden shortcut to a safe place 852 | -9/Mines | Entered Zion 882 | -7/Zion | Found Prototype Device 945 | -7/Zion | Given A8's code to call for help 958 | -7/Zion | Learned location of 1 exit from Lower Caves 970 | -7/Zion | Identified Phasing AFG 972 | -7/Zion | Found Prototype Device 974 | -7/Zion | Identified Mobile Refinery Mk. CCLXVII 984 | -7/Zion | Found Prototype Hackware 991 | -7/Zion | Identified Exp. System Shield 1012 | -7/Zion | Given the Hacking Drone Bay 1012 | -7/Zion | Found Prototype Device 1046 | -7/Zion | Build established: Scavenger-Mutant 1065 | -7/Zion | Identified exit to Proximity Caves 1311 | -7/Zion | Entered Proximity Caves 1317 | -6/Proximity Caves | Learned location of 1 exit from Factory 1380 | -6/Proximity Caves | Build established: Hacker-Mutant 1495 | -6/Proximity Caves | Lost 3 parts (1p2n) 1500 | -6/Proximity Caves | Discovered new exit (range 10) 1507 | -6/Proximity Caves | Entered Factory 1507 | -6/Factory | Evolved 6 slots: Propulsion x3, Utility x3 1507 | -6/Factory | Identified Hacking Drone Bay 1508 | -6/Factory | Identified exit to Factory 1715 | -6/Factory | Lost 5 parts (2n2u1w) 1747 | -6/Factory | Identified exit to Lower Caves 1993 | -6/Factory | Core integrity fell below 50% 2021 | -6/Factory | Crushed by falling debris 2052 | -6/Factory | Lost 4 parts (1p3u) 2319 | -6/Factory | Build established: Mutant 2518 | -6/Factory | Lost 3 parts (1n2u) 2719 | -6/Factory | Core integrity fell below 20% 2761 | -6/Factory | Entered Lower Caves 2762 | -6/Lower Caves | Identified exit to Lower Caves 2791 | -6/Lower Caves | Spotted B-75 Beast 2890 | -6/Lower Caves | Lost 3 parts (3n) 3083 | -6/Lower Caves | Build established: Hacker-Mutant 3088 | -6/Lower Caves | Destroyed by B-75 Beast with Magnetic Acceleration Cannon Last Messages --------------- S-27 Virus suffers critical hit (Burn). Imp. Gravmag System destroyed. S-27 Virus suffers critical hit (Burn). S-27 Virus heat spikes uncontrollably. S-27 Virus overheating. S-27 Virus suffers critical hit (Burn). VTOL Module melted. S-27 Virus destroyed. Imp. Gravmag System destroyed. S-27 Virus destroyed. Autogun fries itself beyond repair. Lgt. Nuclear Core fries itself beyond repair. VTOL Module fries itself beyond repair. S-27 Virus destroyed. Acquired 20 matter. Acquired 24 matter. Acquired Lgt. Nuclear Core. Acquired 29 matter. Dropped Hrd. Light Armor Plating. Dropped Mobile Refinery Mk. CCLXVII. Map ----- +----------------------------------------------------+ | ?????????????????????????????????????????????????? | | ?????????????????????????????????????????????????? | | ?????????????????????????????????????????????????? | | ?????????????????????????????????????????????????? | | ?????????????????????????????????????????????????? | | ?????????????????????????????????????????????????? | | ?????????????????????????????????????????????????? | | ?????????????????????????????????????????????????? | | ?????????????????????????????????????????????????? | | ?????????????????????????????????????????????????? | | ?????????????????????????????????????????????????? | | ?????????????????????????????????????????????????? | | ?????????????????????????????????????????????????? | | ?????????????????????????????????????????????????? | | ??????????????????####???????????????????????????? | | ????????????????### ##??????????????????????????? | | ???????????????## #####??????????????????????? | | ???????????????# ##?????????????????????? | | ???????????????# ####??????????????????? | | ??????????????## #??????????????????? | | ?????????????## ##???????????####?## | | ?????????????# ##?????????## ### | | ?????????????# #????????## ## | | ??????????????# % ##?????### | | ??????????????# ##??### | | ??????????##### #### @ #### | | ??????????# ##??# ## | | ??????????# ##??## ### | | ??????????# ##???# ##### | | ??????????## ###????# #??## # | | ???????????## ##?????## ### #??# ####" ## | | ????????????###??????# ##??##??# ###"" #? | | ?????? ???##????????# ##??????# "" """ #? | | ???????# ## ?????#; ######### " #? | | ? ## ??## ## " #? | | ? ## ### ! """"" #? | | ? #?# ####### """"" #? | | ???????????# ### #????## "" " #? | | ???????????# BB ## #????# " " ## | | ???????????##### BB "" ##???# "### | | ???????????## ## ##### "####! #### | | ???????????# ! !! ! #?## | | ??????????# ### ### | | ?????????# #??####### #### ###### | | ????????# #?????????### #??# | | ??????? #????????????# ??# | | ????? ?????????????## ?## ### | | ????? ???????????????# #?## ### | | ????? ????????????????# ??#### ### | | ?????? ??????????????????## ##????######?# | +----------------------------------------------------+ Best States ------------- Heat Dissipation 37 Energy Generation 14 Energy Capacity 225 Matter Stores 300 Matter Capacity 300 Sight Range 22 Robot Scan Range 15 Terrain Scan Density 10 Power Amplification 20 Corruption Containment 8 Armor Coverage 750 Evasion (%) 63 Targeting Accuracy 5 Armor Integrity Analysis 30 Recoil Reduction 1 Offensive Hacking 22 Defensive Hacking 16 Item Schematics ----------------- Enh. Gauss Cannon | -7/Zion | Archive Hvy. Missile Launcher | -7/Zion | Archive Energy Well | -7/Zion | Archive Mak. Sword | -7/Zion | Archive EM Disruption Field | -7/Zion | Archive Recalibrator | -7/Zion | Archive Imp. Heavy Armor Plating | -7/Zion | Archive Imp. EM Pulse Cannon | -7/Zion | Archive Phase Cannon | -7/Zion | Archive Powered Hammer | -7/Zion | Archive Imp. Coolant Injector | -7/Zion | Archive Mak. Transmission Jammer | -7/Zion | Archive Lyr. Light Armor Plating | -7/Zion | Archive Gravmag System | -7/Zion | Archive Imp. System Restoration Module | -7/Zion | Archive Imp. System Shield | -6/Factory | Scanalyzed Robot Schematics ------------------ Y-54 Guardian | -7/Zion | Archive A-02 Transporter | -7/Zion | Archive M-14 Sweeper | -7/Zion | Archive Fabricated ------------ Nothing Alien Tech Used ----------------- None Achievements -------------- None Challenges ------------ None Game ------ Seed TeslaLauncherInterpreter Manual? 0 Play Time 01:16:19 Cumulative 22.2 hours Start 2023.05.13 @ 02:51:27 End 2023.05.14 @ 00:31:49 Sessions 3 Manual Loads 0 Difficulty Rogue Special Mode None Game No. 14 Rogue 14 Adventurer 0 Explorer 0 Win Type - Total 0 Types 0/0/0/0/0/0/0/0/0 Lore% 31 Gallery% 30 Achievement% 34 Wizard Run 0 Options --------- ASCII 0 Keyboard 0 Movement Mouse Keybinds 0 Fullscreen 1 Font 36/Smallcaps Map View 76x50 Tactical HUD 0 Map Filters NONE Filters NONE Steam 1 RUN: dfb9dd3c-e42f-409a-9e02-77936d3105b2